fUSD/lending_fUSD_20250328
["ID","MTS","AMOUNT","RATE_DAILY","PERIOD"]
[356756189,1743120631590,-157.81866811,0.00014327,2]
[356756190,1743120631601,-829.204122,0.00014429,2]
[356756192,1743120631612,-300.0,0.00014501,2]
[356756194,1743120631622,-169.5438882,0.00014502,5]
[356756196,1743120631634,-930.24830038,0.00014502,5]
[356756197,1743120631647,-749.20652285,0.00014502,5]
[356756198,1743120631659,-3723.68140962,0.00014502,5]
[356756199,1743120631802,-833.12760124,0.00014502,5]
[356756200,1743120631814,-943.7974135,0.00014502,5]
[356756201,1743120631856,-820.15295765,0.00014502,5]
[356756202,1743120631872,-9152.19733159,0.00014502,5]
[356756203,1743120631909,-14342.35769434,0.00014502,5]
[356756204,1743120631921,-12605.84280233,0.00014502,5]
[356756205,1743120631973,-1541.18937342,0.00014502,5]
[356756206,1743120631984,-2727.3619961,0.00014502,5]
[356756356,1743120642707,-6499.78030799,0.00014502,5]
[356756357,1743120642751,-3195.49649849,0.00014502,5]
[356756358,1743120642762,-186.832,0.000147,2]
[356756359,1743120642771,-150.0,0.00014826,2]
[356756360,1743120642781,-5063.89819479,0.000149,2]
[356756361,1743120642792,-1259.18168907,0.000149,2]
[356756362,1743120642802,-928.8962817,0.000149,2]
[356756363,1743120642811,-150.0,0.00014917,2]
[356756364,1743120642820,-2295.33,0.0001499,2]
[356756365,1743120642829,-2295.33,0.0001499,2]
[356756366,1743120642839,-300.0,0.00014999,2]
[356756367,1743120642848,-4191.03533593,0.00015,2]
[356756703,1743121044677,1132.0,0.000108,5]
[356756718,1743121831765,-179.15,0.00014123,2]
[356756720,1743121831774,-735.44328847,0.000145,2]
[356756722,1743121831784,-85.40671153,0.00014688,2]
[356756723,1743121831874,-100.79006678,0.00014688,2]
[356756724,1743121831885,-186.832,0.000147,2]
[356756725,1743121831895,-396.99201476,0.0001479,2]
[356756726,1743121831905,-396.99201476,0.000148,2]
[356756727,1743121831914,-300.0,0.00014889,2]
[356756728,1743121831924,-1921.24323517,0.0001489,2]
[356756729,1743121832036,-360.70058689,0.0001489,2]
[356756792,1743121845832,-188.18159935,0.000147,2]
[356756793,1743121845841,-188.18159935,0.0001475,2]
[356756794,1743121845850,-141.75451847,0.0001489,2]
[356756795,1743121846051,-3906.95518704,0.0001489,2]
[356756811,1743123032031,-188.18159935,0.000147,2]
[356756812,1743123032041,-547.75465942,0.0001479,2]
[356756813,1743123032052,-3355.27394058,0.0001479,2]
[356756814,1743123032062,-198.0,0.000148,2]
[356756815,1743123032071,-300.0,0.00014889,2]
[356756816,1743123032080,-53880.25677879,0.0001489,2]
[356756817,1743123032135,-395.97891996,0.0001489,2]
[356756818,1743123032242,-659.21713515,0.0001489,2]
[356756819,1743123032254,-708.89782024,0.0001489,2]
[356756832,1743123037870,-3783.67940241,0.0001489,2]
[356756833,1743123037977,-1416.61649412,0.0001489,2]
[356756834,1743123037989,-31500.0,0.0001489,2]
[356756835,1743123038031,-2097.87804215,0.0001489,2]
[356756836,1743123038041,-150.90343238,0.000149,2]
[356756837,1743123038050,-13465.69312373,0.000149,2]
[356756838,1743123038060,-1797.89528722,0.000149,2]
[356756839,1743123038069,-270.2332,0.000149,2]
[356756840,1743123038079,-300.22746999,0.00014973,2]
[356756841,1743123038088,-500.0,0.00014973,2]
[356756842,1743123038098,-469.81273625,0.00014973,2]
[356756843,1743123038110,-30.18726375,0.00014973,2]
[356756844,1743123038120,-300.0,0.00014999,2]
[356756845,1743123038129,-997.0,0.00015,2]
[356756846,1743123038138,-522.1870428,0.00015,2]
[356756849,1743123040483,-7557.06605297,0.00015,2]
[356756905,1743123044363,-322.19627518,0.00015,2]
[356756908,1743123046029,-574.80372482,0.00015,2]
[356756909,1743123046039,-54.52317762,0.00015,2]
[356756911,1743123806144,224.23274706,0.00032539,120]
[356756912,1743123833852,184.4465119,0.00032539,120]
[356756913,1743123891080,158.58518855,0.00025,120]
[356756918,1743124232278,-1000.0,0.000149,2]
[356756919,1743124232289,-367.04497241,0.000149,2]
[356756921,1743124238120,-665.66402759,0.000149,2]
[356756922,1743124238130,-184.03597241,0.000149,2]
[356756923,1743124238232,-13618.60412759,0.000149,2]
[356756924,1743124238243,-500.0,0.000149,2]
[356756925,1743124238253,-150.90343232,0.000149,2]
[356756926,1743124238262,-1618.10575848,0.000149,2]
[356756927,1743124238272,-163.91,0.0001499,3]
[356756928,1743124238281,-300.0,0.00014999,2]
[356756929,1743124238292,-703.0,0.00015,2]
[356756930,1743124238301,-31865.80963856,0.00015,2]
[356756989,1743124240301,-2626.48469706,0.00015,2]
[356757002,1743124240420,-4726.16,0.00015,2]
[356757015,1743124240533,-9502.67247795,0.00015,2]
[356757017,1743124240544,-14054.28515239,0.00015,2]
[356757079,1743124243244,-638.0,0.00015,2]
[356757080,1743124243253,-1270.6191,0.00015,2]
[356757081,1743124243462,-254.95648138,0.00015,2]
[356757087,1743124930868,500.0,0.00032537,30]
[356757088,1743124931099,500.0,0.00032537,30]
[356757089,1743124931226,534.76637012,0.00032537,30]
[356757090,1743124931702,500.0,0.00032537,30]
[356757091,1743124931987,500.0,0.00032537,30]
[356757092,1743124932233,500.0,0.00032537,30]
[356757093,1743124932491,500.0,0.00032537,30]
[356757094,1743124932794,500.0,0.00032537,30]
[356757095,1743124933037,500.0,0.00032537,30]
[356757096,1743124933283,500.0,0.00032537,30]
[356757097,1743124933627,500.0,0.00032537,30]
[356757098,1743124933855,500.0,0.00032537,30]
[356757099,1743124934273,538.2996635,0.00032537,30]
[356757100,1743124950649,500.0,0.00032537,30]
[356757101,1743124950851,500.0,0.00032537,30]
[356757102,1743124951113,500.0,0.00032537,30]
[356757103,1743124951351,500.0,0.00032537,30]
[356757104,1743124951662,453.8219072,0.00032537,30]
[356757105,1743124953388,1703.33,0.00032537,30]
[356757106,1743124953661,1703.33,0.00032537,30]
[356757107,1743124953905,1703.33,0.00032537,30]
[356757108,1743124954166,1703.33,0.00032537,30]
[356757109,1743124954446,1703.33,0.00032537,30]
[356757110,1743124954502,505.27005113,0.00032537,30]
[356757111,1743124954739,1703.33,0.00032537,30]
[356757112,1743124955011,1703.33,0.00032537,30]
[356757113,1743124955272,1703.33,0.00032537,30]
[356757114,1743124955528,1703.33,0.00032537,30]
[356757115,1743124955934,1703.33,0.00032537,30]
[356757116,1743124956244,1703.33,0.00032537,30]
[356757117,1743124956505,1703.33,0.00032537,30]
[356757118,1743124956855,1703.33,0.00032537,30]
[356757119,1743124957120,1703.33,0.00032537,30]
[356757120,1743124957377,1703.33,0.00032537,30]
[356757121,1743124957655,1703.33,0.00032537,30]
[356757122,1743124957898,1703.33,0.00032537,30]
[356757123,1743124958209,1703.33,0.00032537,30]
[356757124,1743124958451,1703.33,0.00032537,30]
[356757125,1743124958695,1703.33,0.00032537,30]
[356757126,1743124958988,1703.33,0.00032537,30]
[356757127,1743124959486,1703.33,0.00032537,30]
[356757128,1743124959519,429.96973367,0.00032537,30]
[356757129,1743124959739,1703.33,0.00032537,30]
[356757130,1743124959987,1703.3572081,0.00032537,30]
[356757132,1743125031545,500.0,0.00032537,30]
[356757133,1743125032138,500.0,0.00032537,30]
[356757134,1743125032394,500.0,0.00032537,30]
[356757135,1743125032633,500.0,0.00032537,30]
[356757136,1743125032888,500.0,0.00032537,30]
[356757137,1743125033137,500.0,0.00032537,30]
[356757138,1743125033385,500.0,0.00032537,30]
[356757139,1743125033636,500.0,0.00032537,30]
[356757140,1743125033864,500.0,0.00032537,30]
[356757141,1743125034287,500.0,0.00032537,30]
[356757142,1743125034366,500.0,0.00032537,30]
[356757143,1743125034625,500.0,0.00032537,30]
[356757144,1743125034880,500.0,0.00032537,30]
[356757145,1743125035120,500.0,0.00032537,30]
[356757146,1743125035446,500.0,0.00032537,30]
[356757147,1743125035686,500.0,0.00032537,30]
[356757148,1743125035947,500.0,0.00032537,30]
[356757149,1743125036197,462.20132762,0.00032537,30]
[356757151,1743125095280,500.0,0.00032537,30]
[356757152,1743125095541,500.0,0.00032537,30]
[356757153,1743125095776,346.32641582,0.00032537,30]
[356757154,1743125151805,748.48,0.00032537,30]
[356757155,1743125152054,748.48,0.00032537,30]
[356757156,1743125152300,748.48,0.00032537,30]
[356757157,1743125153027,748.48,0.00032537,30]
[356757158,1743125153158,748.48,0.00032537,30]
[356757159,1743125153414,748.48,0.00032537,30]
[356757160,1743125153673,748.48,0.00032537,30]
[356757161,1743125153908,748.48,0.00032537,30]
[356757162,1743125154160,748.48,0.00032537,30]
[356757163,1743125154421,748.48,0.00032537,30]
[356757164,1743125154758,748.48,0.00032537,30]
[356757165,1743125155029,748.48,0.00032537,30]
[356757166,1743125155294,748.48,0.00032537,30]
[356757167,1743125155542,748.48,0.00032537,30]
[356757168,1743125156132,748.48,0.00032537,30]
[356757169,1743125156381,748.48,0.00032537,30]
[356757170,1743125156657,748.48,0.00032537,30]
[356757171,1743125157071,748.48,0.00032537,30]
[356757172,1743125157142,748.48,0.00032537,30]
[356757173,1743125157394,748.48,0.00032537,30]
[356757174,1743125157657,748.48,0.00032537,30]
[356757175,1743125157898,748.48,0.00032537,30]
[356757176,1743125158144,748.48,0.00032537,30]
[356757177,1743125158387,748.68747966,0.00032537,30]
[356757178,1743125167555,500.0,0.00032537,30]
[356757179,1743125167814,500.0,0.00032537,30]
[356757180,1743125168061,500.0,0.00032537,30]
[356757181,1743125168304,534.65,0.00032537,30]
[356757182,1743125197424,500.0,0.00032537,30]
[356757183,1743125197679,500.0,0.00032537,30]
[356757184,1743125197953,500.0,0.00032537,30]
[356757185,1743125198191,500.0,0.00032537,30]
[356757186,1743125198449,500.0,0.00032537,30]
[356757187,1743125198713,500.0,0.00032537,30]
[356757188,1743125198964,500.0,0.00032537,30]
[356757189,1743125199224,500.0,0.00032537,30]
[356757190,1743125199500,500.0,0.00032537,30]
[356757191,1743125199742,500.0,0.00032537,30]
[356757192,1743125199978,500.0,0.00032537,30]
[356757193,1743125200238,500.0,0.00032537,30]
[356757194,1743125200480,500.0,0.00032537,30]
[356757195,1743125200751,500.0,0.00032537,30]
[356757196,1743125201030,500.0,0.00032537,30]
[356757197,1743125201616,500.0,0.00032537,30]
[356757198,1743125201876,500.0,0.00032537,30]
[356757199,1743125202140,500.0,0.00032537,30]
[356757200,1743125202421,500.0,0.00032537,30]
[356757201,1743125202661,500.0,0.00032537,30]
[356757202,1743125202892,500.0,0.00032537,30]
[356757203,1743125203295,500.0,0.00032537,30]
[356757204,1743125203550,215.54454739,0.00032537,30]
[356757205,1743125292851,218.10008646,0.00032537,30]
[356757208,1743125363942,545.52,0.00032537,30]
[356757209,1743125364349,545.52,0.00032537,30]
[356757210,1743125364416,545.52,0.00032537,30]
[356757211,1743125364666,545.52,0.00032537,30]
[356757212,1743125364907,545.52,0.00032537,30]
[356757213,1743125365167,545.52,0.00032537,30]
[356757214,1743125365415,545.52,0.00032537,30]
[356757215,1743125365658,545.52,0.00032537,30]
[356757216,1743125366017,545.52,0.00032537,30]
[356757217,1743125366257,545.52,0.00032537,30]
[356757218,1743125366503,545.52,0.00032537,30]
[356757219,1743125367287,545.52,0.00032537,30]
[356757220,1743125367367,545.52,0.00032537,30]
[356757221,1743125367615,545.52,0.00032537,30]
[356757222,1743125367855,545.52,0.00032537,30]
[356757223,1743125368134,545.52,0.00032537,30]
[356757224,1743125368391,545.52,0.00032537,30]
[356757225,1743125368990,545.52,0.00032537,30]
[356757226,1743125369262,545.52,0.00032537,30]
[356757227,1743125369507,545.52,0.00032537,30]
[356757228,1743125369800,545.52,0.00032537,30]
[356757229,1743125370389,545.52,0.00032537,30]
[356757230,1743125370632,545.52,0.00032537,30]
[356757231,1743125370886,545.72120912,0.00032537,30]
[356757232,1743125403618,194.44224399,0.00032537,30]
[356757238,1743125415259,245.98189003,0.00032537,30]
[356757239,1743125417395,500.0,0.00032537,30]
[356757240,1743125417651,500.0,0.00032537,30]
[356757241,1743125418246,203.12144444,0.00032537,30]
[356757242,1743125419066,293.38956962,0.00032537,30]
[356757243,1743125421180,164.99171672,0.00032537,30]
[356757252,1743125432529,-225.4132823,0.0001455,2]
[356757253,1743125432539,-300.0,0.00014799,2]
[356757254,1743125432548,-167.1394469,0.000148,2]
[356757255,1743125432619,-6488.1780531,0.000148,2]
[356757256,1743125432628,-1180.4038,0.000148,2]
[356757257,1743125432638,-223.7212,0.000148,2]
[356757258,1743125432647,-158.0711,0.000148,2]
[356757259,1743125432656,-268.0946,0.000148,2]
[356757260,1743125432665,-211.1327,0.000148,2]
[356757261,1743125432675,-1456.29518265,0.000148,2]
[356757262,1743125432685,-5791.44714579,0.0001489,2]
[356757263,1743125432694,-300.0,0.00014899,2]
[356757264,1743125432707,-222.82353153,0.00014899,2]
[356757265,1743125432716,-179.26759659,0.00014899,2]
[356757266,1743125432726,-397.9451,0.000149,2]
[356757267,1743125432735,-1000.0,0.000149,2]
[356757268,1743125432745,-202789.5858,0.000149,2]
[356757269,1743125432754,-12122.79082928,0.000149,2]
[356757270,1743125432763,-150.90343232,0.000149,2]
[356757271,1743125432775,-501.26624735,0.00014973,2]
[356757272,1743125432784,-433.64580336,0.00014973,2]
[356757273,1743125432793,-500.0,0.00014973,2]
[356757274,1743125432803,-571.86868611,0.00014973,2]
[356757275,1743125432813,-679.0,0.00015,2]
[356757276,1743125432823,-44409.35209051,0.00015,2]
[356757277,1743125432856,-18646.7307762,0.00015,2]
[356757278,1743125432869,-3095.0618137,0.00015,2]
[356757279,1743125432880,-1000.09,0.00015,2]
[356757422,1743125438473,-663.85289851,0.00015,2]
[356757423,1743125438485,-458.84855654,0.00015,2]
[356757424,1743125438566,-740.75,0.00015,2]
[356757425,1743125438579,-906.18218104,0.00015,2]
[356757426,1743125439014,382.33917167,0.00032537,30]
[356757429,1743125440630,-293.22318818,0.00015,2]
[356757430,1743125440722,-311.77681182,0.00015,2]
[356757431,1743125440733,-344.36318818,0.00015,2]
[356757432,1743125440819,-3330.14103743,0.00015,2]
[356757433,1743125440831,-1867.34186428,0.00015,2]
[356757434,1743125440916,-303.12471619,0.00015,2]
[356757435,1743125440927,-13318.58005203,0.00015,2]
[356757436,1743125441857,259.52460313,0.00032537,30]
[356757441,1743125443736,-125533.32011773,0.00015,2]
[356757442,1743125443748,-13596.70322489,0.00015,2]
[356757443,1743125443832,-516.06534078,0.00015,2]
[356757446,1743125446422,-553.0,0.00015,2]
[356757447,1743125446431,-245879.85037103,0.00015,2]
[356757448,1743125446500,-16660.20008641,0.00015,2]
[356757449,1743125446511,-397.94510674,0.00015,2]
[356757450,1743125450717,982.45,0.00032537,30]
[356757451,1743125451042,982.45,0.00032537,30]
[356757452,1743125451280,982.45,0.00032537,30]
[356757453,1743125451547,982.45,0.00032537,30]
[356757454,1743125451795,982.45,0.00032537,30]
[356757455,1743125452040,982.45,0.00032537,30]
[356757456,1743125452299,982.45,0.00032537,30]
[356757457,1743125452580,982.45,0.00032537,30]
[356757458,1743125452844,982.45,0.00032537,30]
[356757459,1743125453105,982.45,0.00032537,30]
[356757460,1743125453352,982.45,0.00032537,30]
[356757461,1743125453617,982.45,0.00032537,30]
[356757462,1743125453849,982.45,0.00032537,30]
[356757463,1743125454123,982.45,0.00032537,30]
[356757464,1743125454402,982.45,0.00032537,30]
[356757465,1743125454665,982.45,0.00032537,30]
[356757466,1743125454925,982.45,0.00032537,30]
[356757467,1743125455176,982.45,0.00032537,30]
[356757468,1743125455431,982.45,0.00032537,30]
[356757469,1743125455675,982.45,0.00032537,30]
[356757470,1743125455922,982.45,0.00032537,30]
[356757471,1743125456236,982.45,0.00032537,30]
[356757472,1743125456337,280.5316182,0.00032537,30]
[356757473,1743125456728,982.45,0.00032537,30]
[356757474,1743125456773,982.59302864,0.00032537,30]
[356757475,1743125462357,393.98647529,0.00032537,30]
[356757476,1743125462648,500.0,0.00032537,30]
[356757477,1743125462891,500.0,0.00032537,30]
[356757478,1743125463178,500.0,0.00032537,30]
[356757479,1743125463421,500.0,0.00032537,30]
[356757480,1743125463695,500.0,0.00032537,30]
[356757481,1743125463937,500.0,0.00032537,30]
[356757482,1743125464185,500.0,0.00032537,30]
[356757483,1743125464434,530.13276768,0.00032537,30]
[356757484,1743125466969,167.21529366,0.00032537,30]
[356757485,1743125472554,164.37513486,0.00032537,30]
[356757486,1743125474520,500.0,0.00032537,30]
[356757487,1743125474873,455.15797402,0.00032537,30]
[356757488,1743125477483,500.0,0.00032537,30]
[356757489,1743125477763,500.0,0.00032537,30]
[356757490,1743125478005,500.0,0.00032537,30]
[356757491,1743125478236,500.0,0.00032537,30]
[356757492,1743125478468,500.0,0.00032537,30]
[356757493,1743125478714,367.1778736,0.00032537,30]
[356757494,1743125490989,157.70399808,0.00032537,30]
[356757495,1743125497165,500.0,0.00032537,30]
[356757496,1743125497511,500.0,0.00032537,30]
[356757497,1743125497637,500.0,0.00032537,30]
[356757498,1743125497882,500.0,0.00032537,30]
[356757499,1743125498150,500.0,0.00032537,30]
[356757500,1743125498380,500.0,0.00032537,30]
[356757501,1743125498622,500.0,0.00032537,30]
[356757502,1743125498862,500.0,0.00032537,30]
[356757503,1743125499098,500.0,0.00032537,30]
[356757504,1743125499373,500.0,0.00032537,30]
[356757505,1743125499615,500.0,0.00032537,30]
[356757506,1743125499843,500.0,0.00032537,30]
[356757507,1743125500086,500.0,0.00032537,30]
[356757508,1743125500335,588.51317093,0.00032537,30]
[356757509,1743125512300,340.10869268,0.00032537,30]
[356757510,1743125529678,364.35735026,0.00032537,30]
[356757511,1743125542865,212.18423736,0.00032537,30]
[356757512,1743125551335,179.42409219,0.00032537,30]
[356757513,1743125559812,312.18223599,0.00032537,30]
[356757514,1743125561620,191.36012269,0.00032537,30]
[356757515,1743125568790,171.67752981,0.00032537,30]
[356757516,1743125570017,500.0,0.00032537,30]
[356757517,1743125570258,500.0,0.00032537,30]
[356757518,1743125570506,614.19169666,0.00032537,30]
[356757519,1743125573933,500.0,0.00032537,30]
[356757520,1743125574250,193.2493313,0.00032537,30]
[356757521,1743125574547,257.1901343,0.00032537,30]
[356757522,1743125580355,2005.09,0.00032537,30]
[356757523,1743125584889,354.28648105,0.00032537,30]
[356757524,1743125592719,274.14114085,0.00032537,30]
[356757525,1743125594260,176.41098097,0.00032537,30]
[356757526,1743125600660,180.45371974,0.00032539,30]
[356757527,1743125606645,2000.0,0.00032539,30]
[356757528,1743125606905,2000.0,0.00032539,30]
[356757529,1743125607143,2000.0,0.00032539,30]
[356757530,1743125607387,2000.0,0.00032539,30]
[356757531,1743125607644,2000.0,0.00032539,30]
[356757532,1743125607902,2000.0,0.00032539,30]
[356757533,1743125608146,2006.18960902,0.00032539,30]
[356757534,1743125646226,500.0,0.00032539,30]
[356757535,1743125646474,500.0,0.00032539,30]
[356757536,1743125646725,500.0,0.00032539,30]
[356757537,1743125646878,265.4514798,0.00032539,30]
[356757538,1743125646972,500.0,0.00032539,30]
[356757539,1743125647279,500.0,0.00032539,30]
[356757540,1743125647523,500.0,0.00032539,30]
[356757541,1743125647782,500.0,0.00032539,30]
[356757542,1743125648065,500.0,0.00032539,30]
[356757543,1743125648317,175.31382299,0.00032539,30]
[356757544,1743125677686,564.05651686,0.00032539,30]
[356757548,1743125706192,500.35175111,0.00032539,30]
[356757550,1743125747291,378.36990327,0.00032539,30]
[356757551,1743125753171,500.0,0.00032539,30]
[356757552,1743125753485,500.0,0.00032539,30]
[356757553,1743125753735,510.00907888,0.00032539,30]
[356757555,1743125987869,454.88146256,0.00032534,30]
[356757567,1743126352981,369.32021975,0.00032534,30]
[356757599,1743126631519,-217.205,0.000147,2]
[356757600,1743126631528,-91.585,0.000148,2]
[356757601,1743126631540,-908.415,0.000148,2]
[356757602,1743126631549,-807.94175238,0.00014813,2]
[356757603,1743126631561,-4689.76005154,0.00014813,2]
[356757648,1743126637435,-2646.24146256,0.00014813,2]
[356757654,1743126639877,-1209.11116844,0.00014813,2]
[356757655,1743126639888,-14546.94556508,0.00014813,2]
[356757656,1743126639898,-169.0706,0.000149,2]
[356757657,1743126639907,-321.9055,0.000149,2]
[356757658,1743126639917,-1159.92607333,0.000149,2]
[356757659,1743126639928,-1530.46999996,0.000149,2]
[356757682,1743126699319,1239.59,0.00013351,2]
[356757683,1743126774631,232.8951535,0.00013297,2]
[356757684,1743126851083,237.47856367,0.00015,13]
[356757686,1743126994468,525.32,0.00032534,120]
[356757687,1743127004553,500.0,0.00032534,120]
[356757690,1743127260288,1718.26,0.00032534,30]
[356757691,1743127339686,238.61565696,0.00032534,30]
[356757693,1743127484580,-153.0726,0.00013937,2]
[356757695,1743127631487,500.0,0.00032534,30]
[356757696,1743127631788,500.0,0.00032534,30]
[356757697,1743127632096,500.0,0.00032534,30]
[356757698,1743127632279,519.01311342,0.00032534,30]
[356757699,1743127682023,-197.973586,0.00013867,2]
[356757700,1743127682051,-16.89008631,0.00013936,2]
[356757703,1743127831714,-150.0,0.00013932,2]
[356757704,1743127831724,-166.99,0.00013932,2]
[356757705,1743127831733,-23746.9274,0.00013937,2]
[356757706,1743127831742,-334.02,0.00013947,2]
[356757707,1743127831752,-250.0,0.00014604,2]
[356757708,1743127831764,-500.0,0.00014703,2]
[356757709,1743127831773,-510.26,0.00014709,2]
[356757710,1743127831783,-393.37,0.00014722,2]
[356757711,1743127831793,-393.37,0.00014753,2]
[356757712,1743127831803,-393.37,0.00014784,2]
[356757713,1743127831812,-339.49,0.00014785,3]
[356757714,1743127831822,-193.49,0.00014787,2]
[356757715,1743127831832,-153.4,0.00014795,2]
[356757716,1743127831845,-661.39,0.00014798,2]
[356757717,1743127831855,-393.37,0.00014815,2]
[356757718,1743127831864,-150.0,0.00014819,7]
[356757719,1743127831873,-393.37,0.00014846,2]
[356757720,1743127831882,-393.37,0.00014877,2]
[356757721,1743127831891,-153.9166441,0.000149,2]
[356757722,1743127831900,-1000.0,0.000149,2]
[356757723,1743127831909,-3167.58437863,0.000149,2]
[356757724,1743127831921,-2464.97948686,0.000149,2]
[356757725,1743127831932,-5051.85378235,0.000149,2]
[356757726,1743127831941,-2500.0,0.000149,2]
[356757727,1743127831951,-1360.20757918,0.000149,2]
[356757728,1743127831960,-393.37,0.00014908,2]
[356757729,1743127831969,-393.37,0.00014939,2]
[356757730,1743127831978,-393.37,0.0001497,2]
[356757731,1743127831987,-217.206334,0.00014973,2]
[356757732,1743127831996,-300.82380352,0.00014973,2]
[356757733,1743127832005,-11236.58,0.0001499,2]
[356757734,1743127832014,-11236.58,0.0001499,2]
[356757735,1743127832023,-2675.9278467,0.00014996,2]
[356757736,1743127832032,-157.11047589,0.00014999,2]
[356757737,1743127832043,-9202.5648644,0.00014999,2]
[356757738,1743127832055,-2238.75903107,0.00014999,2]
[356757994,1743127837710,-1363.63083316,0.00014999,2]
[356758025,1743127845807,-953.0460285,0.00014999,2]
[356758176,1743127936746,1177.61,0.00012875,2]
[356758177,1743128244245,500.0,0.00032534,30]
[356758178,1743128244470,500.0,0.00032534,30]
[356758179,1743128244702,500.0,0.00032534,30]
[356758180,1743128244966,500.0,0.00032534,30]
[356758181,1743128245201,500.0,0.00032534,30]
[356758182,1743128245449,500.0,0.00032534,30]
[356758183,1743128245690,500.0,0.00032534,30]
[356758184,1743128245957,500.0,0.00032534,30]
[356758185,1743128246210,500.0,0.00032534,30]
[356758186,1743128246819,500.0,0.00032534,30]
[356758187,1743128247057,500.0,0.00032534,30]
[356758188,1743128247369,534.19311209,0.00032534,30]
[356758193,1743128738236,160.93215926,0.00032533,120]
[356758194,1743128770509,152.29511332,0.00032533,60]
[356758195,1743128791891,155.04506566,0.00032533,60]
[356758196,1743128830234,-250.0,0.0001372,2]
[356758197,1743128882882,-181.09745514,0.00013719,2]
[356758198,1743128908131,-118.90254486,0.00013719,2]
[356758199,1743128913539,154.08764969,0.00032533,30]
[356758200,1743128925440,153.3939245,0.00032533,30]
[356758207,1743128937920,1118.72,0.00011802,2]
[356758208,1743128941323,300.0,0.00013719,2]
[356758211,1743129003292,300.0,0.00013719,2]
[356758212,1743129029369,1000.0,0.00013701,2]
[356758223,1743129031775,-369.82578301,0.0001372,2]
[356758226,1743129031790,-1049.29,0.0001372,2]
[356758228,1743129031835,-637.98693171,0.0001372,2]
[356758229,1743129031889,-634.23674173,0.0001372,2]
[356758230,1743129031945,-5319.15229107,0.0001372,2]
[356758231,1743129031956,-2235.24020556,0.0001372,2]
[356758244,1743129032948,-150.0,0.0001372,2]
[356758248,1743129037734,-878.01,0.0001372,2]
[356758249,1743129037746,-596.76792635,0.0001372,2]
[356758250,1743129037842,-3774.75,0.0001372,2]
[356758251,1743129037854,-8004.74012057,0.0001372,2]
[356758252,1743129037864,-855.21362979,0.00013966,2]
[356758253,1743129037874,-1118.72,0.00014066,2]
[356758254,1743129037883,-272.63,0.00014268,2]
[356758255,1743129037893,-136.19624964,0.00014298,2]
[356758256,1743129037904,-136.43375036,0.00014298,2]
[356758257,1743129037913,-272.63,0.00014328,2]
[356758258,1743129037922,-169.57,0.00014352,2]
[356758259,1743129037931,-272.63,0.00014358,2]
[356758260,1743129037941,-250.0,0.00014373,2]
[356758261,1743129037950,-272.63,0.00014388,2]